Workbook

Sheet 例題26 PFR
A1: 微分方程式数 | B1: 1 | F1: 定数
A2: xA= | B2: V= | F2: F= | G2: 0.0005 | H2: m3/s
A3: 0.8 | B3: 3.128828553 | F3: cA0= | G3: 500 | H3: mol/m3
B4: V'= | F4: k= | G4: 1.106e-06 | H4: m3/mol-s
A5: 微分方程式→ | B5: =G2*G3/G6 -> 5.023106289 | F5: θC= | G5: 0.1
F6: -rA= | G6: =G4*G3^2*(1-A3)*(G5+A3) -> 0.04977
A7: 積分区間xA=[a, | B7: 0
A8: b] | B8: 0.8
A9: 積分刻み幅ΔV | B9: 0.025
A10: 計算結果
A11: xA | B11: V PFR[m3] | J11: V PFR | L11: V CSTR
A12: =B7 -> 0 | B12: 0 | E12: ←初期値 | J12: xA | K12: V PFR[m3] | L12: xA | M12: V CSTR
A13: 0.025 | B13: 0.2042297848 | J13: 0 | K13: 0 | L13: 0 | M13: =$G$2*$G$3*L13/($G$4*$G$3^2*(1-L13)*($G$5+L13)) -> 0
A14: 0.05 | B14: 0.3754435928 | J14: 0.025 | K14: 0.2042297848 | L14: 0.1 | M14: =$G$2*$G$3*L14/($G$4*$G$3^2*(1-L14)*($G$5+L14)) -> 0.5023106289
A15: 0.075 | B15: 0.5240706283 | J15: 0.05 | K15: 0.3754435928 | L15: 0.2 | M15: 0.7534659433
A16: 0.1 | B16: 0.6563497014 | J16: 0.075 | K16: 0.5240706283 | L16: 0.3 | M16: 0.9687419272
A17: 0.125 | B17: 0.7763185503 | J17: 0.1 | K17: 0.6563497014 | L17: 0.4 | M17: 1.205545509
A18: 0.15 | B18: 0.8867477471 | J18: 0.125 | K18: 0.7763185503 | L18: 0.5 | M18: 1.506931887
A19: 0.175 | B19: 0.9896272544 | J19: 0.15 | K19: 0.8867477471 | L19: 0.6 | M19: 1.937483854
A20: 0.2 | B20: 1.086440568 | J20: 0.175 | K20: 0.9896272544 | L20: 0.7 | M20: 2.637130802
A21: 0.225 | B21: 1.178328973 | J21: 0.2 | K21: 1.086440568 | L21: 0.8 | M21: 4.018485031
A22: 0.25 | B22: 1.266195005 | J22: 0.225 | K22: 1.178328973
A23: 0.275 | B23: 1.350770409 | J23: 0.25 | K23: 1.266195005
A24: 0.3 | B24: 1.432662445 | J24: 0.275 | K24: 1.350770409
A25: 0.325 | B25: 1.51238649 | J25: 0.3 | K25: 1.432662445
A26: 0.35 | B26: 1.590389734 | J26: 0.325 | K26: 1.51238649
A27: 0.375 | B27: 1.667068954 | J27: 0.35 | K27: 1.590389734
A28: 0.4 | B28: 1.742784303 | J28: 0.375 | K28: 1.667068954
A29: 0.425 | B29: 1.81787043 | J29: 0.4 | K29: 1.742784303
A30: 0.45 | B30: 1.892645854 | J30: 0.425 | K30: 1.81787043
A31: 0.475 | B31: 1.967421279 | J31: 0.45 | K31: 1.892645854
A32: 0.5 | B32: 2.042507406 | J32: 0.475 | K32: 1.967421279
A33: 0.525 | B33: 2.118222754 | J33: 0.5 | K33: 2.042507406
A34: 0.55 | B34: 2.194901974 | J34: 0.525 | K34: 2.118222754
A35: 0.575 | B35: 2.272905219 | J35: 0.55 | K35: 2.194901974
A36: 0.6 | B36: 2.352629264 | J36: 0.575 | K36: 2.272905219
A37: 0.625 | B37: 2.4345213 | J37: 0.6 | K37: 2.352629264
A38: 0.65 | B38: 2.519096704 | J38: 0.625 | K38: 2.4345213
A39: 0.675 | B39: 2.606962735 | J39: 0.65 | K39: 2.519096704
A40: 0.7 | B40: 2.69885114 | J40: 0.675 | K40: 2.606962735
A41: 0.725 | B41: 2.795664454 | J41: 0.7 | K41: 2.69885114
A42: 0.75 | B42: 2.898543961 | J42: 0.725 | K42: 2.795664454
A43: 0.775 | B43: 3.008973158 | J43: 0.75 | K43: 2.898543961
A44: 0.8 | B44: 3.128942007 | J44: 0.775 | K44: 3.008973158
J45: 0.8 | K45: 3.128942007

Sheet 例題26 液相自触媒反応 CSTRとPFR
A1: 橋本健治：反応工学 p. 89 例題5.6 酢酸メチルの加水分解反応 | L1: τ | M1: 2475 | N1: s
C2: Methyl acetate | D2: Water | E2: Acetic acid | F2: Methanol | L2: V | M2: =M1*G8 -> 1.2375 | N2: m3
C3: (A) | D3: (B) | E3: (C) | F3: (D)
A4: 供給 | B4: mol/s | C4: 0.249990158 | D4: 26.75326564 | E4: 0.0249951939 | F4: 0
A5: MW | B5: kg/kmol | C5: 74.079 | D5: 18.015 | E5: 60.05 | F5: 32.04
A6: density | B6: kmol/m3 | C6: 12.45 | D6: 55.91 | E6: 17.67 | F6: 25.066
A7: F0i | B7: m3/s | C7: =(C4*0.001)/C6 -> 2.007953076e-05 | D7: =(D4*0.001)/D6 -> 0.0004785059138 | E7: =(E4*0.001)/E6 -> 1.414555399e-06 | F7: =(F4*0.001)/F6 -> 0
A8: F0 =F | B8: m3/s | G8: =SUM(C7:F7) -> 0.0005
A9: c0i | B9: mol/m3 | C9: =C4/$G$8 -> 499.9803159 | D9: =D4/$G$8 -> 53506.53129 | E9: 49.9903878 | F9: 0
A11: k | C11: 1.106e-06
A12: cA0 | C12: =C9 -> 499.9803159
A13: θc | C13: =E9/C9 -> 0.09998471182
A14: xA | C14: 0.45
A15: -rA=kcAcC | B15: mol/m3-s | C15: =C11*C12^2*(1-C14)*(C13+C14) -> 0.08363233976
A18: Levenspiel プロット
B19: -rA | C19: F cA0/-rA
A20: xA | B20: mol/s-m3 | C20: m3
A21: 0 | B21: =$C$11*$C$12^2*(1-A21)*($C$13+A21) -> 0.02764359613 | C21: =$G$8*$C$12/B21 -> 9.043329846
A22: 0.05 | B22: =$C$11*$C$12^2*(1-A22)*($C$13+A22) -> 0.03939413224 | C22: 6.345872944
A23: 0.1 | B23: 0.0497622772 | C23: 5.023688063
A24: 0.15 | B24: 0.05874803102 | C24: 4.255294239
A25: 0.2 | B25: 0.06635139368 | C25: 3.767670038
A26: 0.25 | B26: 0.07257236519 | C26: 3.444701813
A27: 0.3 | B27: 0.07741094556 | C27: 3.229390316
A28: 0.35 | B28: 0.08086713477 | C28: 3.091369054
A29: 0.4 | B29: 0.08294093284 | C29: 3.014074588
A30: 0.45 | B30: 0.08363233976 | C30: 2.989156571
A31: 0.5 | B31: 0.08294135552 | C31: 3.014059227
A32: 0.55 | B32: 0.08086798014 | C32: 3.091336738
A33: 0.6 | B33: 0.07741221361 | C33: 3.229337417
A34: 0.65 | B34: 0.07257405593 | C34: 3.444621563
A35: 0.7 | B35: 0.0663535071 | C35: 3.767550034
A36: 0.75 | B36: 0.05875056713 | C36: 4.255110549
A37: 0.8 | B37: 0.049765236 | C37: 5.023389379
A38: 0.85 | B38: 0.03939751372 | C38: 6.345328279
A39: 0.9 | B39: 0.0276474003 | C39: 9.042085522
A41: CSTRとPFRの組み合わせ
A42: V CSTR
A43: xA | B43: 0.45
A44: V CSTR | B44: =G8*C12*B43/($C$11*$C$12^2*(1-B43)*($C$13+B43)) -> 1.345120457 | C44: m3
A45: V PFR | B45: (微分方程式解法シートより）
A46: xA 1 | B46: 0.45
A47: xA 2 | B47: 0.8
A48: V PFR | B48: 1.236 | C48: m3
A49: 合計V | B49: =B44+B48 -> 2.581120457 | C49: m3

Sheet Shream report
B2: Stream | C2: Feed | D2: 2 | E2: Products | G2: CSTR
B3: Pressure / [MPa] | C3: 0.1013 | D3: 0.1013 | E3: 0.1013 | G3: Parameter | H3: Value
B4: Temperature / [°C] | C4: 25 | D4: 25 | E4: 25 | G4: Reactor volume / [m³] | H4: 1.345
B5: Flow rate / [mol / s] | C5: 27.025 | D5: 27.025 | E5: 27.025 | G5: Methyl acetate conversion | H5: 0.451525
B6: Flow Methyl acetate / [mol / s] | C6: 0.25 | D6: 0.137119 | E6: 0.0495864
B7: Flow Water / [mol / s] | C7: 26.75 | D7: 26.6371 | E7: 26.5496 | G7: PFR
B8: Flow Acetic acid / [mol / s] | C8: 0.025 | D8: 0.137881 | E8: 0.225414 | G8: Parameter | H8: Value
B9: Flow Methanol / [mol / s] | C9: 0 | D9: 0.112881 | E9: 0.200414 | G9: Length / [m] | H9: 1.236
G10: Methyl acetate conversion | H10: 0.638369
